bitfinex/quotes_BTCUSD_20240715
["timestamp","ask_amount","ask_price","bid_price","bid_amount"]
[1721052577364,0.574974,63055.0,63046.0,0.08722626]
[1721052577365,0.158602,63051.0,63046.0,0.08722626]
[1721052577561,0.023,63050.0,63049.0,0.08722626]
[1721052577820,0.08105238,63057.0,63051.0,0.158601]
[1721052577821,0.158587,63057.0,63051.0,0.158601]
[1721052577951,0.023,63056.0,63055.0,0.08722626]
[1721052578221,0.181588,63057.0,63054.0,0.08722626]
[1721052578408,0.158589,63056.0,63054.0,0.08722626]
[1721052578590,0.023,63055.0,63054.0,0.19322626]
[1721052578793,0.023,63055.0,63054.0,0.08722626]
[1721052578996,0.181592,63055.0,63053.0,0.001]
[1721052579237,0.79297,63054.0,63053.0,0.001]
[1721052579438,0.81597,63054.0,63053.0,0.001]
[1721052580210,0.158601,63052.0,63047.0,0.08722626]
[1721052580396,0.657376,63054.0,63047.0,0.08722626]
[1721052580397,0.181601,63051.0,63047.0,0.08722626]
[1721052580593,0.158604,63050.0,63045.0,0.09028979]
[1721052580822,0.158604,63050.0,63045.0,0.08722626]
[1721052581189,0.158604,63050.0,63046.0,0.08722626]
[1721052581547,0.158604,63050.0,63049.0,0.08722626]
[1721052581897,0.023,63051.0,63050.0,0.19322626]
[1721052582109,0.393344,63063.0,63057.0,0.08722626]
[1721052582328,0.393344,63063.0,63052.0,0.08722626]
[1721052582329,0.158586,63057.0,63052.0,0.08722626]
[1721052582532,0.023,63061.0,63051.0,0.08722626]
[1721052582713,0.023,63061.0,63060.0,0.08722626]
[1721052582926,0.023,63061.0,63060.0,0.19322626]
[1721052583215,0.00807434,63062.0,63060.0,0.08722626]
[1721052583388,0.00807434,63062.0,63061.0,0.35180226]
[1721052584133,0.00807434,63062.0,63061.0,0.66895526]
[1721052584864,0.00807434,63062.0,63061.0,0.98610826]
[1721052585271,0.00807434,63062.0,63061.0,1.04610826]
[1721052585426,0.00807434,63062.0,63061.0,0.98610826]
[1721052585830,0.00907434,63062.0,63061.0,0.98610826]
[1721052586643,0.00907434,63062.0,63061.0,0.66895526]
[1721052586977,0.00907434,63062.0,63061.0,0.98610826]
[1721052588562,0.00407434,63062.0,63061.0,0.98610826]
[1721052588972,0.00407434,63062.0,63061.0,1.12750826]
[1721052589186,0.00407434,63062.0,63061.0,1.18880826]
[1721052589392,0.00407434,63062.0,63061.0,1.50596126]
[1721052589810,0.00407434,63062.0,63061.0,1.60596126]
[1721052590013,0.00307434,63062.0,63061.0,1.60596126]
[1721052590635,0.00307434,63062.0,63061.0,2.78394292]
[1721052590898,0.00833,63078.0,63074.0,1.46303026]
[1721052591083,0.00833,63078.0,63074.0,2.18273517]
[1721052591533,0.00833,63078.0,63074.0,1.76564817]
[1721052592264,0.00833,63078.0,63074.0,2.08273517]
[1721052592548,0.00833,63078.0,63074.0,2.38273517]
[1721052592677,0.00833,63078.0,63074.0,2.18273517]
[1721052592879,0.00833,63078.0,63074.0,2.78141649]
[1721052593288,0.00833,63078.0,63077.0,0.2]
[1721052593506,0.00833,63081.0,63080.0,0.57775426]
[1721052593707,0.00833,63081.0,63080.0,1.55188617]
[1721052594106,0.00833,63081.0,63080.0,2.18600017]
[1721052594312,0.00833,63090.0,63088.0,1.18966826]
[1721052594561,0.00833,63090.0,63088.0,1.50668526]
[1721052595057,0.00833,63090.0,63088.0,2.35282017]
[1721052595479,0.00833,63090.0,63088.0,1.60668526]
[1721052596836,0.00833,63090.0,63088.0,1.61468526]
[1721052597043,0.00833,63090.0,63088.0,1.60668526]
[1721052597254,0.00833,63090.0,63088.0,2.55282017]
[1721052597474,0.00833,63090.0,63088.0,2.69846762]
[1721052597679,0.00833,63090.0,63088.0,2.79846762]
[1721052597890,0.00833,63090.0,63089.0,2.07978026]
[1721052598094,0.00833,63090.0,63089.0,2.64053553]
[1721052600105,0.00833,63090.0,63089.0,2.64054504]
[1721052600316,0.00833,63090.0,63089.0,2.52289817]
[1721052600741,0.00833,63090.0,63089.0,2.98301017]
[1721052601224,0.00833,63090.0,63089.0,2.59763522]
[1721052601431,0.00833,63090.0,63089.0,2.46599817]
[1721052602279,0.00833,63090.0,63089.0,2.19899817]
[1721052602405,0.00833,63090.0,63089.0,1.71986826]
[1721052602992,0.00833,63090.0,63089.0,1.73386826]
[1721052603193,0.00833,63090.0,63089.0,1.89598617]
[1721052603416,0.00833,63090.0,63089.0,2.09598617]
[1721052603625,0.00833,63090.0,63089.0,2.41299817]
[1721052603827,0.00833,63090.0,63089.0,2.67999817]
[1721052604469,0.00833,63090.0,63089.0,2.22677191]
[1721052604670,0.00833,63090.0,63089.0,1.79598617]
[1721052605079,0.00833,63090.0,63089.0,0.37973226]
[1721052605329,0.00833,63090.0,63089.0,0.22122626]
[1721052605501,0.00833,63090.0,63089.0,0.028]
[1721052605859,0.308433,63090.0,63089.0,0.028]
[1721052606039,0.965447,63090.0,63089.0,0.014]
[1721052606478,0.965447,63090.0,63089.0,0.019]
[1721052606677,1.282454,63090.0,63089.0,0.005]
[1721052607084,1.282454,63090.0,63089.0,0.01]
[1721052607085,0.965447,63090.0,63089.0,0.01]
[1721052607434,0.64844,63090.0,63089.0,0.005]
[1721052607835,0.64944,63090.0,63089.0,0.006]
[1721052608156,0.966447,63090.0,63089.0,0.001]
[1721052608606,0.968447,63090.0,63089.0,0.001]
[1721052609100,0.966447,63090.0,63089.0,0.001]
[1721052609428,0.65144,63090.0,63089.0,0.08822626]
[1721052609644,0.65144,63090.0,63089.0,0.001]
[1721052610287,0.968447,63090.0,63089.0,0.001]
[1721052610494,0.65736,63090.0,63089.0,0.08822626]
[1721052610699,0.65736,63090.0,63089.0,0.001]
[1721052610924,0.158508,63088.0,63085.0,0.08722626]
[1721052611094,0.158508,63088.0,63086.0,0.19322626]
[1721052611095,0.023,63087.0,63086.0,0.19322626]
[1721052611675,0.023,63087.0,63084.0,0.08722626]
[1721052611875,0.181511,63087.0,63084.0,0.08722626]
[1721052612280,0.317028,63086.0,63080.0,0.08722626]
[1721052612483,0.024,63087.0,63074.0,0.00306353]
[1721052612484,0.158541,63075.0,63074.0,0.00306353]
[1721052612708,0.475623,63075.0,63074.0,0.00306353]
[1721052612905,0.181541,63075.0,63074.0,0.00306353]
[1721052613102,0.181541,63075.0,63073.0,0.08722626]
[1721052613319,0.15855,63072.0,63064.0,0.40436326]
[1721052613523,0.023,63071.0,63067.0,0.08722626]
[1721052613725,0.023,63074.0,63070.0,0.08722626]
[1721052613923,0.023,63074.0,63071.0,0.08722626]
[1721052614387,0.181544,63074.0,63070.0,0.08722626]
[1721052614597,0.023,63074.0,63073.0,0.08722626]
[1721052614802,0.023,63075.0,63073.0,0.08722626]
[1721052615003,0.023,63075.0,63074.0,0.35176926]
[1721052615216,0.0639,63079.0,63077.0,0.08722626]
[1721052615217,0.023,63078.0,63077.0,0.08722626]
[1721052616241,0.0832,63085.0,63077.0,0.82737026]
[1721052616492,0.158522,63083.0,63078.0,0.00317034]
[1721052616734,0.158522,63083.0,63069.0,0.317111]
[1721052616735,0.08105238,63080.0,63073.0,0.08722626]
[1721052616950,0.158533,63079.0,63073.0,0.08722626]
[1721052617201,0.158534,63078.0,63073.0,0.08722626]
[1721052617444,0.023,63079.0,63073.0,0.08722626]
[1721052617445,0.023,63077.0,63073.0,0.08722626]
[1721052617684,0.023,63077.0,63071.0,0.08722626]
[1721052617685,0.158542,63075.0,63071.0,0.08722626]
[1721052617899,0.340075,63077.0,63062.0,0.158573]
[1721052617900,0.158556,63069.0,63062.0,0.158573]
[1721052618303,0.139,63072.0,63066.0,0.08722626]
[1721052618304,0.023,63068.0,63066.0,0.08722626]
[1721052618510,0.023,63068.0,63065.0,0.08722626]
[1721052618685,0.181556,63069.0,63066.0,0.08722626]
[1721052618886,0.181556,63069.0,63062.0,0.158573]
[1721052618887,0.023,63069.0,63063.0,0.08722626]
[1721052619206,0.158574,63062.0,63061.0,0.000913]
[1721052619411,0.317125,63067.0,63061.0,0.000913]
[1721052619412,0.158571,63063.0,63062.0,0.19322626]
[1721052619814,0.181571,63063.0,63062.0,0.19322626]
[1721052620399,0.023,63063.0,63062.0,0.19322626]
[1721052620647,0.158569,63064.0,63062.0,0.19322626]
[1721052620849,0.023,63066.0,63063.0,0.08722626]
[1721052620968,0.023,63066.0,63065.0,0.08722626]
[1721052621172,0.158561,63067.0,63065.0,0.08722626]
[1721052621379,0.181564,63066.0,63065.0,0.19322626]
[1721052621575,0.158564,63066.0,63065.0,0.19322626]
[1721052621776,0.181564,63066.0,63065.0,0.19322626]
[1721052622411,0.023,63066.0,63065.0,0.19322626]
[1721052622603,0.023,63069.0,63068.0,0.19322626]
[1721052622893,0.023,63069.0,63066.0,0.08722626]
[1721052622894,0.181556,63069.0,63066.0,0.08722626]
[1721052623320,0.181556,63069.0,63067.0,0.08722626]
[1721052623969,0.181556,63069.0,63068.0,0.19322626]
[1721052624134,0.158544,63074.0,63070.0,0.08722626]
[1721052624273,0.158544,63074.0,63065.0,0.09022626]
[1721052624274,0.3171,63072.0,63065.0,0.09022626]
[1721052624475,0.317108,63070.0,63065.0,0.09022626]
[1721052624680,0.158552,63071.0,63066.0,0.08722626]
[1721052624884,0.158552,63071.0,63067.0,0.000913]
[1721052625386,0.181555,63070.0,63067.0,0.000913]
[1721052625887,0.158557,63069.0,63067.0,0.000913]
[1721052626091,0.023,63068.0,63067.0,0.000913]
[1721052626332,0.181554,63070.0,63069.0,0.19322626]
[1721052626650,0.181554,63070.0,63067.0,0.000913]
[1721052626651,0.181554,63070.0,63067.0,0.08813926]
[1721052626803,0.181554,63070.0,63067.0,0.000913]
[1721052627019,0.183554,63070.0,63067.0,0.08813926]
[1721052627370,0.158559,63068.0,63067.0,0.000913]
[1721052627519,0.181559,63068.0,63067.0,0.000913]
[1721052627947,1.279413,63068.0,63067.0,0.000913]
[1721052629750,1.279413,63068.0,63067.0,0.001913]
[1721052629751,1.80641347,63068.0,63067.0,0.001913]
[1721052629931,1.81276947,63068.0,63067.0,0.001913]
[1721052630128,1.81276947,63068.0,63067.0,0.00185337]
[1721052631000,2.34259395,63068.0,63067.0,0.00185337]
[1721052631501,2.38820733,63068.0,63067.0,0.00185337]
[1721052631808,2.38820733,63068.0,63067.0,0.00085337]
[1721052632234,2.38855779,63068.0,63067.0,0.00085337]
[1721052632447,2.03547782,63068.0,63067.0,0.00285337]
[1721052632663,2.03147782,63068.0,63067.0,0.00185337]
[1721052632836,2.41270408,63068.0,63067.0,0.00085337]
[1721052633040,2.31677134,63068.0,63067.0,0.00185337]
[1721052633354,2.32270408,63068.0,63067.0,0.00285337]
[1721052633561,2.22277134,63068.0,63067.0,0.00285337]
[1721052633737,2.22077134,63068.0,63067.0,0.00285337]
[1721052633937,2.22677134,63068.0,63067.0,0.00385337]
[1721052634142,1.82677134,63068.0,63067.0,0.00385337]
[1721052634371,2.32677134,63068.0,63067.0,0.00385337]
[1721052635056,2.31877134,63068.0,63067.0,0.00185337]
[1721052635260,1.391769,63068.0,63067.0,0.00185337]
[1721052635566,1.391769,63068.0,63067.0,0.00285337]
[1721052635567,1.40665197,63068.0,63067.0,0.00285337]
[1721052635761,1.40665197,63068.0,63067.0,0.00185337]
[1721052635762,1.40126671,63068.0,63067.0,0.00185337]
[1721052635960,1.08914871,63068.0,63067.0,0.00185337]
[1721052636235,1.08314871,63068.0,63067.0,0.00185337]
[1721052636421,1.08314871,63068.0,63067.0,0.00085337]
[1721052636422,1.09214871,63068.0,63067.0,0.00085337]
[1721052636624,1.09714871,63068.0,63067.0,0.00185337]
[1721052637025,1.40026671,63068.0,63067.0,0.00185337]
[1721052637240,1.41426671,63068.0,63067.0,0.00185337]
[1721052637847,1.40026671,63068.0,63067.0,0.00185337]
[1721052638002,1.41126671,63068.0,63067.0,0.00185337]
[1721052638211,1.41126671,63068.0,63067.0,0.00085337]
[1721052638212,1.40626671,63068.0,63067.0,0.00085337]
[1721052638561,1.41126588,63068.0,63067.0,0.00185337]
[1721052638934,1.40138374,63068.0,63067.0,0.00185337]
[1721052639142,1.4112659,63068.0,63067.0,0.00185337]
[1721052641805,1.41126594,63068.0,63067.0,0.00185337]
[1721052642008,1.41098028,63068.0,63067.0,0.00185337]
[1721052643006,1.39998028,63068.0,63067.0,0.00185337]
[1721052643412,1.39498028,63068.0,63067.0,0.00085337]
[1721052643915,1.40698028,63068.0,63067.0,0.00185337]
[1721052644648,1.34778028,63068.0,63067.0,0.00285337]
[1721052644822,0.94836228,63068.0,63067.0,0.00285337]
[1721052645024,0.94836228,63068.0,63067.0,0.09007963]
[1721052645025,0.0332382,63068.0,63067.0,0.09007963]
[1721052645230,0.0332382,63068.0,63067.0,0.35464063]
[1721052645432,0.0332382,63068.0,63067.0,0.98888663]
[1721052645433,0.023356,63068.0,63067.0,0.98888663]
[1721052645611,0.017,63068.0,63067.0,1.07098663]
[1721052646247,0.017,63068.0,63067.0,1.06998663]
[1721052646248,0.005,63068.0,63067.0,1.06998663]
[1721052646660,0.005,63068.0,63067.0,1.19818663]
[1721052646867,0.063545,63078.0,63077.0,0.19322626]
[1721052647014,0.4707,63083.0,63079.0,0.08722626]
[1721052647223,0.00987947,63082.0,63081.0,0.15242626]
[1721052647421,0.4707,63083.0,63081.0,0.15242626]
[1721052647422,0.4707,63083.0,63081.0,0.41695226]
[1721052647625,0.4707,63083.0,63082.0,0.19322626]
[1721052647826,0.4707,63083.0,63081.0,0.31095226]
[1721052647827,0.48057865,63083.0,63081.0,0.31095226]
[1721052648034,0.48057865,63083.0,63082.0,0.00306353]
[1721052648035,0.4707,63083.0,63082.0,0.00306353]
[1721052648217,0.48057851,63083.0,63082.0,0.00306353]
[1721052648629,0.95614161,63083.0,63082.0,0.00306353]
[1721052648832,0.95614161,63083.0,63076.0,0.106]
[1721052648833,0.158529,63080.0,63078.0,0.00306353]
[1721052649057,0.158526,63081.0,63078.0,0.00306353]
[1721052649228,0.08105238,63082.0,63079.0,0.001]
[1721052649229,0.23957538,63082.0,63079.0,0.001]
[1721052649426,0.023,63081.0,63079.0,0.001]
[1721052649629,0.181526,63081.0,63079.0,0.001]
[1721052649881,0.181526,63081.0,63077.0,0.08722626]
[1721052650090,0.181526,63081.0,63072.0,0.398197]
[1721052650091,0.158559,63068.0,63065.0,0.1465]
[1721052650276,0.158559,63068.0,63059.0,0.16164453]
[1721052650277,0.55672938,63068.0,63061.0,0.067213]
[1721052650433,0.730777,63068.0,63061.0,0.067213]
[1721052650633,0.498677,63068.0,63061.0,0.067213]
[1721052651028,0.82567598,63068.0,63061.0,0.067213]
[1721052651239,1.19797598,63068.0,63061.0,0.000913]
[1721052651477,1.59614636,63068.0,63061.0,0.000913]
[1721052653071,1.37489398,63068.0,63067.0,0.00485337]
[1721052653457,1.64279398,63068.0,63067.0,0.00485337]
[1721052653657,1.64279398,63068.0,63067.0,0.00085337]
[1721052654124,1.65479398,63068.0,63067.0,0.00185337]
[1721052654236,1.15479398,63068.0,63067.0,0.00185337]
[1721052654437,1.14279398,63068.0,63067.0,0.00085337]
[1721052654838,1.15379398,63068.0,63067.0,0.00185337]
[1721052656356,1.14279398,63068.0,63067.0,0.00085337]
[1721052656651,1.15379398,63068.0,63067.0,0.00185337]
[1721052657009,1.15079398,63068.0,63067.0,0.00185337]
[1721052657590,1.15079398,63068.0,63067.0,0.00285337]
[1721052657805,1.15879434,63068.0,63067.0,0.00285337]
[1721052658147,0.84803234,63068.0,63067.0,0.00285337]
[1721052659081,0.84886234,63068.0,63067.0,0.00285337]
[1721052660729,1.16598067,63068.0,63067.0,0.00285337]
[1721052660910,0.838981,63068.0,63067.0,0.00285337]
[1721052661230,0.521863,63068.0,63067.0,0.09007963]
[1721052661362,0.03306745,63068.0,63067.0,0.33717963]
[1721052661598,0.19162645,63068.0,63067.0,0.14395337]
[1721052662820,0.21462645,63068.0,63067.0,0.14395337]
[1721052663274,0.21462645,63068.0,63067.0,0.23117963]
[1721052663405,0.02671051,63068.0,63067.0,1.12998663]
[1721052663605,0.01683,63068.0,63067.0,1.12998663]
[1721052664412,0.01683,63068.0,63067.0,1.12898663]
[1721052664612,0.00083,63068.0,63067.0,1.12798663]
[1721052664812,0.00883,63068.0,63067.0,1.18898663]
[1721052665387,0.01783,63068.0,63067.0,1.18998663]
[1721052665597,0.01783,63068.0,63067.0,1.50710963]
[1721052665799,0.1111689,63090.0,63088.0,0.19322626]
[1721052665800,0.01625,63090.0,63088.0,0.19322626]
[1721052666013,0.01625,63090.0,63089.0,0.35173226]
[1721052666213,0.01625,63090.0,63086.0,0.1407]
[1721052666214,0.02612657,63090.0,63088.0,0.24573226]
[1721052666416,0.02612657,63090.0,63086.0,0.1407]
[1721052666417,0.01625,63090.0,63089.0,0.19322626]
[1721052666576,0.02612706,63090.0,63089.0,0.19322626]
[1721052666976,0.02612706,63090.0,63089.0,0.35173226]
[1721052667340,0.02612706,63090.0,63089.0,0.67174426]
[1721052667541,0.01625,63090.0,63089.0,0.98875626]
[1721052667750,0.01625,63090.0,63089.0,0.98575626]
[1721052667948,0.01625,63090.0,63089.0,0.98675626]
[1721052667949,0.02225,63090.0,63089.0,0.98675626]
[1721052668153,0.03212681,63090.0,63089.0,0.66974426]
[1721052668355,0.02225,63090.0,63089.0,0.66974426]
[1721052668632,0.02225,63090.0,63089.0,1.18705626]
[1721052669002,0.02225,63090.0,63089.0,1.51006826]
[1721052669003,0.02325,63090.0,63089.0,1.51006826]
[1721052669374,0.01725,63090.0,63089.0,1.50906826]
[1721052669572,0.01725,63090.0,63089.0,2.25539817]
[1721052669750,0.01725,63090.0,63089.0,2.35539817]
[1721052670271,0.00933,63090.0,63089.0,2.36039817]
[1721052670468,0.00833,63090.0,63089.0,2.35439817]
[1721052670693,0.00833,63090.0,63089.0,2.34939817]
[1721052670853,0.00833,63090.0,63089.0,2.36039817]
[1721052671059,0.00833,63090.0,63089.0,1.77618617]
[1721052671267,0.00933,63090.0,63089.0,1.78918617]
[1721052672352,0.00933,63090.0,63089.0,1.62706826]
[1721052672635,0.00933,63090.0,63089.0,0.83304426]
[1721052673050,0.00933,63090.0,63089.0,1.21005626]
[1721052673252,0.00933,63090.0,63089.0,0.83304426]
[1721052673634,0.00933,63090.0,63089.0,0.43623226]
[1721052673836,0.00933,63090.0,63089.0,1.07025626]
[1721052674200,0.00926292,63090.0,63089.0,1.07025626]
[1721052675429,0.00926292,63090.0,63089.0,1.13025626]
[1721052676035,0.00926292,63090.0,63089.0,1.07025626]
[1721052676712,0.00926292,63090.0,63089.0,1.13025626]
[1721052676916,0.07165708,63096.0,63095.0,0.19322626]
[1721052677069,0.023,63096.0,63095.0,0.35171726]
[1721052677410,0.023,63096.0,63095.0,0.19322626]
[1721052677606,0.181478,63100.0,63098.0,0.08722626]
[1721052677975,0.023,63100.0,63099.0,0.19322626]
[1721052678157,0.00833,63101.0,63100.0,0.74996126]
[1721052678548,0.00833,63101.0,63100.0,1.06691826]
[1721052678933,0.00833,63101.0,63100.0,0.74996126]
[1721052679087,0.00833,63101.0,63100.0,0.35170426]
[1721052679498,0.00833,63101.0,63100.0,0.19322626]
[1721052679877,0.00833,63101.0,63100.0,0.35170426]
[1721052681079,0.00833,63101.0,63100.0,0.158478]
[1721052681632,0.00833,63101.0,63099.0,0.24570626]
[1721052681834,0.08105238,63100.0,63097.0,0.08722626]
[1721052682037,0.181481,63099.0,63097.0,0.08722626]
[1721052682204,0.158483,63098.0,63097.0,0.08722626]
[1721052682402,0.158483,63098.0,63093.0,0.08722626]
[1721052682403,0.023,63098.0,63093.0,0.08722626]
[1721052682615,0.792467,63094.0,63093.0,0.08722626]
[1721052682821,0.47548,63094.0,63093.0,0.08722626]
[1721052683031,0.49848,63094.0,63093.0,0.08722626]
[1721052684578,0.49848,63094.0,63093.0,0.09322626]
[1721052684801,0.023,63094.0,63093.0,0.19922626]
[1721052684921,0.816947,63102.0,63093.0,0.19922626]
[1721052684922,0.023,63095.0,63094.0,0.19322626]
[1721052685123,0.09038238,63101.0,63098.0,0.08722626]
[1721052685404,0.00933,63101.0,63100.0,0.25462626]
[1721052685729,0.166806,63101.0,63100.0,0.19322626]
[1721052685911,0.166806,63101.0,63098.0,0.08722626]
[1721052686209,0.158479,63100.0,63098.0,0.08722626]
[1721052686446,0.158479,63100.0,63099.0,0.08722626]
[1721052686664,0.158479,63100.0,63097.0,0.08722626]
[1721052686837,0.158481,63099.0,63097.0,0.08722626]
[1721052687064,0.023,63098.0,63097.0,0.08722626]
[1721052687581,0.023,63098.0,63095.0,0.0614]
[1721052687582,0.158487,63097.0,63095.0,0.0614]
[1721052687849,0.158487,63097.0,63093.0,0.17002626]
[1721052687850,0.023,63096.0,63093.0,0.17002626]
[1721052688561,0.325286,63101.0,63097.0,0.001]
[1721052688562,0.498452,63098.0,63097.0,0.001]
[1721052688962,0.815419,63098.0,63097.0,0.001]
[1721052691778,0.815419,63098.0,63093.0,0.08722626]
[1721052691779,0.158493,63094.0,63093.0,0.08722626]
[1721052691980,0.181493,63094.0,63093.0,0.08722626]
[1721052692333,0.158501,63091.0,63090.0,0.19322626]
[1721052692538,0.181501,63091.0,63090.0,0.19322626]
[1721052692968,0.023,63091.0,63090.0,0.35172926]
[1721052693159,0.158497,63093.0,63091.0,0.08722626]
[1721052693365,0.023,63092.0,63091.0,0.08722626]
[1721052693566,0.023,63092.0,63089.0,0.100913]
[1721052693567,0.158503,63090.0,63089.0,0.100913]
[1721052693727,0.792517,63090.0,63089.0,0.100913]
[1721052693937,1.51970094,63090.0,63089.0,0.100913]
[1721052694139,2.33670794,63090.0,63089.0,0.100913]
[1721052694365,2.59574285,63090.0,63089.0,0.100913]
[1721052694930,2.426831,63090.0,63089.0,0.100913]
[1721052695107,2.43671061,63090.0,63089.0,0.101913]
[1721052695311,2.43671061,63090.0,63089.0,0.102913]
[1721052695312,2.430831,63090.0,63089.0,0.102913]
[1721052695608,2.5534837,63090.0,63089.0,0.101913]
[1721052695840,2.48702786,63090.0,63089.0,0.102913]
[1721052696013,2.5998016,63090.0,63089.0,0.102913]
[1721052696156,2.5998016,63090.0,63089.0,0.101913]
[1721052696362,2.44070996,63090.0,63089.0,0.101913]
[1721052696601,2.44070996,63090.0,63089.0,0.102913]
[1721052697014,2.5534837,63090.0,63089.0,0.102913]
[1721052697223,2.5494837,63090.0,63089.0,0.101913]
[1721052697483,3.18790148,63090.0,63089.0,0.101913]
[1721052697726,3.19190148,63090.0,63089.0,0.102913]
[1721052697889,3.1168901,63090.0,63089.0,0.101913]
[1721052698098,3.12189786,63090.0,63089.0,0.101913]
[1721052698327,2.80489086,63090.0,63089.0,0.101913]
[1721052698502,2.29989086,63090.0,63089.0,0.101913]
[1721052698707,2.79989086,63090.0,63089.0,0.101913]
[1721052698936,3.12589786,63090.0,63089.0,0.102913]
[1721052699063,3.27901577,63090.0,63089.0,0.101913]
[1721052699277,3.27901577,63090.0,63089.0,0.10115937]
[1721052699482,3.27901577,63090.0,63089.0,0.10215937]
[1721052699483,3.12589786,63090.0,63089.0,0.10215937]
[1721052699679,3.12589786,63090.0,63089.0,0.10115937]
[1721052699879,3.11964737,63090.0,63089.0,0.10115937]
[1721052700318,3.11964737,63090.0,63070.0,0.48937783]
[1721052700319,1.109857,63071.0,63070.0,0.48937783]
[1721052700526,1.65071302,63071.0,63070.0,0.4863143]
[1721052700688,1.109913,63068.0,63067.0,0.00085337]
[1721052700896,1.24279328,63068.0,63067.0,0.00085337]
[1721052701096,1.232913,63068.0,63067.0,0.00085337]
[1721052701405,1.24279563,63068.0,63067.0,0.00085337]
[1721052701820,1.25479563,63068.0,63067.0,0.00085337]
[1721052702212,1.24279563,63068.0,63067.0,0.00085337]
[1721052702591,1.25679563,63068.0,63067.0,0.00085337]
[1721052703627,1.27079563,63068.0,63067.0,0.00085337]
[1721052704569,1.27079556,63068.0,63067.0,0.00085337]
[1721052705156,1.25679556,63068.0,63067.0,0.00085337]
[1721052705372,1.6726873,63068.0,63067.0,0.00085337]
[1721052705715,1.6866873,63068.0,63067.0,0.00085337]
[1721052705925,1.78200152,63068.0,63067.0,0.00085337]
[1721052706112,2.42885226,63068.0,63067.0,0.00085337]
[1721052706511,2.45685226,63068.0,63067.0,0.00085337]
[1721052706710,2.45685226,63068.0,63061.0,0.000913]
[1721052706711,0.95650648,63062.0,63061.0,0.000913]
[1721052706952,0.95650648,63062.0,63034.0,0.08722626]
[1721052706953,0.158639,63036.0,63035.0,0.00306353]
[1721052707145,0.793197,63036.0,63035.0,0.00306353]
[1721052707388,0.498918,63036.0,63035.0,0.00306353]
[1721052707592,0.498918,63036.0,63035.0,0.19322626]
[1721052708112,0.023,63036.0,63035.0,0.19322626]
[1721052708327,0.181633,63039.0,63038.0,0.08722626]
[1721052709898,0.181633,63039.0,63038.0,0.19322626]
[1721052710128,0.023,63039.0,63038.0,0.19322626]
[1721052710330,0.340263,63039.0,63034.0,0.08722626]
[1721052710451,0.340263,63039.0,63034.0,0.14872626]
[1721052710645,0.158637,63037.0,63034.0,0.14872626]
[1721052710852,0.023,63036.0,63034.0,0.14872626]
[1721052711494,0.023,63036.0,63034.0,0.0615]
[1721052711495,0.55697838,63035.0,63034.0,0.0615]
[1721052711732,0.158649,63032.0,63031.0,0.0819]
[1721052712020,0.181649,63032.0,63031.0,0.0819]
[1721052712576,0.181649,63032.0,63031.0,0.27512626]
[1721052713136,0.498948,63032.0,63031.0,0.0819]
[1721052713332,0.498948,63032.0,63031.0,0.27512626]
[1721052714210,0.499948,63032.0,63031.0,0.27512626]
[1721052714648,0.498948,63032.0,63031.0,0.27512626]
[1721052714804,0.499948,63032.0,63031.0,0.27512626]
[1721052715253,0.500948,63032.0,63031.0,0.27512626]
[1721052715828,0.183649,63032.0,63031.0,0.27512626]
[1721052716030,0.025,63032.0,63031.0,0.27512626]
[1721052716237,0.002,63032.0,63031.0,0.27512626]
[1721052720087,0.002,63032.0,63025.0,0.009152]
[1721052720088,0.158664,63026.0,63025.0,0.009152]
[1721052720287,0.55704538,63026.0,63025.0,0.009152]
[1721052720495,0.58004538,63026.0,63025.0,0.009152]
[1721052720707,0.498993,63026.0,63025.0,0.009152]
[1721052721470,0.023,63026.0,63025.0,0.09637826]
[1721052721671,0.023,63031.0,63030.0,0.22952626]
[1721052722084,0.181652,63031.0,63030.0,0.1423]
[1721052722276,0.498956,63031.0,63030.0,0.1423]
[1721052722654,0.181652,63031.0,63030.0,0.33552626]
[1721052722882,0.023,63031.0,63030.0,0.1423]
[1721052723101,0.002751,63032.0,63030.0,0.0617]
[1721052723404,0.475956,63031.0,63030.0,0.0617]
[1721052723599,0.181652,63031.0,63029.0,0.08722626]
[1721052723763,0.158652,63031.0,63030.0,0.19322626]
[1721052723958,0.158654,63030.0,63029.0,0.08722626]
[1721052724197,0.181654,63030.0,63029.0,0.08722626]
[1721052724395,0.181654,63030.0,63026.0,0.14892626]
[1721052724565,0.023,63029.0,63028.0,0.19322626]
[1721052726233,0.028,63030.0,63029.0,0.08722626]
[1721052726463,0.028,63030.0,63029.0,0.35188326]
[1721052726729,0.028,63030.0,63029.0,0.24588326]
[1721052726730,0.023,63030.0,63029.0,0.24588326]
[1721052726898,0.317282,63036.0,63030.0,0.08722626]
[1721052726899,0.181647,63033.0,63030.0,0.08722626]
[1721052727308,0.181647,63033.0,63031.0,0.08722626]
[1721052727757,0.181647,63033.0,63030.0,0.08722626]
[1721052728191,0.181647,63033.0,63028.0,0.264659]
[1721052728192,0.188647,63033.0,63029.0,0.08722626]
[1721052728390,0.003,63030.0,63029.0,0.08722626]
[1721052728599,0.026,63030.0,63029.0,0.19322626]
[1721052729105,0.026,63030.0,63029.0,0.35188326]
[1721052729318,0.026,63030.0,63029.0,0.72919726]
[1721052729520,0.026,63030.0,63029.0,1.50512526]
[1721052729738,0.026,63030.0,63029.0,1.12781126]
[1721052729893,0.026,63030.0,63029.0,0.81049726]
[1721052730096,0.026,63030.0,63029.0,0.22852626]
[1721052730326,0.15866,63028.0,63025.0,0.09637826]
[1721052730484,0.023,63027.0,63025.0,0.09637826]
[1721052730878,0.023,63027.0,63026.0,0.00306353]
[1721052731087,0.023,63029.0,63026.0,0.00306353]
[1721052731330,0.317308,63031.0,63025.0,0.09637826]
[1721052731331,0.181656,63030.0,63025.0,0.09637826]
[1721052731530,0.184656,63030.0,63026.0,0.00306353]
[1721052731726,0.184656,63030.0,63026.0,0.09028979]
[1721052731956,0.181656,63030.0,63026.0,0.08722626]
[1721052732488,0.001,63027.0,63026.0,0.08722626]
[1721052732688,0.001,63027.0,63026.0,0.19322626]
[1721052733020,0.181656,63030.0,63029.0,0.08722626]
[1721052733464,0.181656,63030.0,63027.0,0.08722626]
[1721052733666,0.181656,63030.0,63029.0,0.08722626]